bitfinex/quotes_ETHUSD_20260126
["timestamp","ask_amount","ask_price","bid_price","bid_amount"]
[1769401062233,7.19798151,2857.9,2856.4,7.08511845]
[1769401062547,0.002,2858.9,2858.0,7.12724955]
[1769401062845,0.002,2859.3,2858.4,7.05010935]
[1769401063014,6.75774154,2859.0,2858.1,7.05010935]
[1769401063513,0.733,2859.0,2858.1,7.9248066]
[1769401063719,0.733,2859.0,2858.1,7.05010935]
[1769401063933,0.002,2859.3,2858.1,7.92481557]
[1769401069151,0.002,2859.1,2858.1,7.92481557]
[1769401070651,0.002,2859.1,2858.1,7.05010935]
[1769401070859,7.19998151,2859.1,2858.1,7.05010935]
[1769401071236,7.19998151,2859.1,2857.9,7.92487546]
[1769401071437,0.71999815,2859.0,2857.9,7.92487546]
[1769401071955,0.71999815,2859.0,2857.6,7.05010935]
[1769401071956,7.19798151,2858.7,2857.6,7.05010935]
[1769401073037,7.19798151,2858.7,2857.6,7.92496306]
[1769401073359,7.19798151,2858.7,2857.6,7.05010935]
[1769401081556,7.19798151,2858.7,2857.8,0.001]
[1769401081868,0.71979815,2858.6,2857.8,0.001]
[1769401085568,0.71979815,2858.6,2857.8,7.376861]
[1769401087264,0.733,2858.5,2857.8,7.376861]
[1769401088167,6.35,2858.9,2857.8,7.376861]
[1769401088487,7.083,2858.9,2858.1,7.375861]
[1769401088680,6.35,2858.9,2858.3,7.375861]
[1769401088831,0.002,2859.1,2858.4,7.375861]
[1769401091957,7.19606199,2859.0,2857.9,7.375861]
[1769401092156,7.19606199,2859.0,2857.8,0.001]
[1769401092157,7.11892179,2858.7,2857.8,0.001]
[1769401092583,7.19606199,2858.6,2857.8,0.001]
[1769401092795,8.5251521,2858.6,2857.8,0.001]
[1769401092949,7.11892179,2858.5,2857.8,0.001]
[1769401093151,7.11892179,2858.5,2858.0,0.001]
[1769401093375,7.85192179,2858.5,2858.0,0.001]
[1769401094692,0.733,2858.5,2858.0,0.001]
[1769401095881,9.73206677,2858.5,2858.0,0.001]
[1769401096884,8.8574784,2858.5,2858.0,0.001]
[1769401097250,0.733,2858.4,2858.0,0.001]
[1769401097874,9.00119265,2858.4,2858.0,0.001]
[1769401098073,9.00119265,2858.4,2857.1,7.33771463]
[1769401098259,7.39357747,2858.2,2857.1,7.33771463]
[1769401098785,7.39357747,2858.0,2856.8,0.001]
[1769401099088,1.00555661,2858.5,2857.5,7.33771463]
[1769401099254,7.52357747,2859.1,2857.8,7.33771463]
[1769401099255,0.733,2858.2,2857.8,7.33771463]
[1769401099452,0.87452338,2858.7,2857.9,0.03499072]
[1769401099651,0.733,2858.3,2857.8,7.33771463]
[1769401100573,0.87456001,2858.6,2857.8,7.33771463]
[1769401100792,0.733,2858.4,2857.8,7.33771463]
[1769401101189,0.87453572,2858.7,2857.8,7.33771463]
[1769401101354,0.733,2858.6,2857.8,7.33771463]
[1769401102096,7.39357747,2858.8,2857.8,7.33771463]
[1769401102097,0.733,2858.5,2857.8,7.33771463]
[1769401103894,0.733,2858.6,2857.8,7.33771463]
[1769401104097,0.733,2858.7,2857.8,7.33771463]
[1769401104757,0.002,2859.1,2858.0,7.33771463]
[1769401104966,0.733,2859.0,2858.2,7.33771463]
[1769401105297,0.002,2858.2,2857.4,7.33771463]
[1769401105467,0.002,2858.2,2857.5,7.37271025]
[1769401105669,0.002,2858.2,2857.5,7.33771463]
[1769401105870,0.002,2858.2,2857.7,7.33771463]
[1769401107694,0.002,2858.2,2857.5,7.33771463]
[1769401117513,0.002,2858.2,2857.7,7.60377694]
[1769401118094,0.002,2858.4,2857.8,7.60277694]
[1769401118472,0.002,2858.4,2858.0,7.60277694]
[1769401118691,7.22079994,2859.0,2858.1,7.60277694]
[1769401118908,8.09523978,2859.0,2858.1,7.60277694]
[1769401119275,8.17237998,2859.0,2857.9,7.60277694]
[1769401119507,8.09523978,2859.0,2857.9,7.60277694]
[1769401119831,8.17237998,2859.0,2857.9,7.60277694]
[1769401119982,7.22079994,2858.8,2857.9,7.60277694]
[1769401121020,7.22079994,2858.8,2857.7,0.001]
[1769401121021,7.22079994,2858.8,2857.7,7.60377694]
[1769401121382,7.95379994,2858.8,2857.7,7.60377694]
[1769401121583,7.22079994,2858.8,2857.7,7.60377694]
[1769401121880,8.82829396,2858.8,2857.7,7.60377694]
[1769401122085,7.22079994,2858.6,2857.7,0.001]
[1769401124202,8.09537276,2858.6,2857.7,0.001]
[1769401127212,0.733,2858.5,2857.7,7.60377694]
[1769401127386,0.733,2858.5,2857.8,7.63776889]
[1769401127586,0.733,2858.5,2857.8,7.60277694]
[1769401128316,9.44468013,2858.7,2857.8,7.60277694]
[1769401128509,0.733,2858.6,2857.8,7.60277694]
[1769401129218,0.002,2858.3,2857.8,7.60277694]
[1769401131920,7.22279994,2858.3,2857.7,0.001]
[1769401133218,0.72227999,2858.2,2857.7,0.001]
[1769401133435,7.22279994,2858.3,2857.7,0.001]
[1769401133931,0.87467636,2858.2,2857.7,0.001]
[1769401134533,8.0954763,2858.2,2857.7,0.001]
[1769401134890,7.22079994,2858.2,2857.7,0.001]
[1769401135294,7.22079994,2858.0,2856.9,7.60277694]
[1769401135491,7.22079994,2857.8,2856.9,7.60277694]
[1769401135797,0.8748294,2857.7,2856.9,7.60277694]
[1769401136432,8.09562934,2857.7,2856.9,7.60277694]
[1769401136721,8.09562934,2857.7,2856.8,0.001]
[1769401136929,8.38028258,2857.6,2856.8,0.001]
[1769401138027,9.25516426,2857.6,2856.8,0.001]
[1769401138227,1.15948264,2857.6,2856.8,7.60377694]
[1769401138552,8.09560774,2857.8,2856.9,0.03500297]
[1769401138726,8.09560774,2857.8,2856.9,7.63777991]
[1769401138909,8.09560774,2857.8,2856.9,7.60277694]
[1769401139110,7.22079994,2857.8,2857.0,0.03500175]
[1769401139312,8.09560318,2857.8,2857.0,0.03500175]
[1769401139509,0.80956032,2857.7,2857.0,0.03500175]
[1769401139704,8.03036026,2857.7,2856.8,0.001]
[1769401140031,8.09565996,2857.6,2856.8,0.001]
[1769401141028,0.733,2857.6,2856.8,7.60377694]
[1769401141218,0.733,2857.6,2857.1,0.001]
[1769401141418,0.2417409,2857.5,2857.1,0.001]
[1769401143296,8.48406955,2857.5,2856.8,0.001]
[1769401144128,8.48406955,2857.5,2856.3,7.90132434]
[1769401144505,8.56120975,2857.5,2856.3,7.90132434]
[1769401144828,7.36743699,2857.3,2856.3,7.90132434]
[1769401145033,0.8100437,2857.2,2856.3,7.90132434]
[1769401146023,0.8100437,2857.2,2856.4,7.90032434]
[1769401146336,0.733,2857.3,2856.7,7.90032434]
[1769401146830,0.9747409,2857.5,2856.8,7.93532854]
[1769401147135,1.84964091,2857.5,2856.8,7.90032434]
[1769401147429,1.6843907,2857.7,2856.9,13.92179731]
[1769401147633,0.733,2857.6,2856.9,13.92179731]
[1769401148032,1.54256032,2857.7,2856.9,13.92179731]
[1769401148203,0.733,2857.6,2856.9,13.92179731]
[1769401150140,0.733,2857.6,2856.9,7.90032434]
[1769401150341,0.87666557,2858.3,2857.3,7.90032434]
[1769401150633,0.735,2858.3,2857.5,13.92179731]
[1769401150833,0.89770687,2858.2,2857.5,13.92179731]
[1769401151443,0.89770687,2858.2,2856.8,0.87510453]
[1769401151444,0.002,2858.3,2857.8,13.92179731]
[1769401152607,0.002,2858.3,2857.9,7.90032434]
[1769401156149,0.002,2858.3,2857.5,6.02147297]
[1769401156440,0.002,2858.3,2857.6,7.90032434]
[1769401156617,0.002,2858.3,2857.2,6.02147297]
[1769401156821,7.59147248,2858.3,2857.3,8.12835865]
[1769401157043,7.59147248,2858.3,2857.3,8.09336058]
[1769401157243,0.87649279,2858.8,2857.9,14.11483355]
[1769401157450,0.002,2858.8,2858.0,8.09336058]
[1769401157637,0.87649858,2858.8,2858.0,8.09336058]
[1769401157949,0.002,2858.8,2858.0,8.09336058]
[1769401161860,0.002,2858.8,2858.2,8.09336058]
[1769401163355,0.002,2858.8,2858.3,8.12834641]
[1769401163569,0.002,2858.8,2858.3,8.09336058]
[1769401165159,0.002,2858.6,2858.3,8.09336058]
[1769401167766,0.002,2858.6,2858.0,8.09336058]
[1769401168266,0.002,2858.6,2858.1,0.03498827]
[1769401168465,0.002,2858.6,2858.1,8.12834885]
[1769401168760,0.002,2858.6,2858.1,8.09336058]
[1769401169062,0.002,2858.6,2858.2,8.12834763]
[1769401169227,0.002,2858.6,2858.2,8.09336058]
[1769401172762,0.002,2858.8,2858.4,8.09336058]
[1769401173127,0.002,2858.8,2858.1,8.09336058]
[1769401173334,0.002,2858.8,2858.2,8.06315654]
[1769401173664,0.002,2858.8,2858.2,8.02816949]
[1769401173861,0.002,2858.8,2858.3,0.03498583]
[1769401174166,0.002,2858.8,2858.3,8.06315532]
[1769401174361,0.002,2858.8,2858.3,8.02816949]
[1769401176267,0.002,2858.8,2858.4,0.0349846]
[1769401177145,0.002,2858.6,2858.4,0.0349846]
[1769401177774,0.002,2858.6,2858.4,8.06315409]
[1769401177939,0.002,2858.6,2858.4,8.02816949]
[1769401178466,0.002,2858.8,2858.4,8.02816949]
[1769401188178,0.002,2859.1,2858.4,8.02816949]
[1769401188384,0.002,2859.3,2858.6,6.0130842]
[1769401188805,0.002,2859.3,2858.6,6.04806635]
[1769401188968,0.002,2859.3,2858.6,14.07623584]
[1769401189170,0.002,2859.3,2858.6,14.04125369]
[1769401189414,0.002,2859.3,2858.7,0.03498093]
[1769401189876,0.00100193,2859.3,2858.7,0.03498093]
[1769401190280,0.00100193,2859.3,2858.7,8.06315042]
[1769401190493,0.00100193,2859.3,2858.7,8.02816949]
[1769401190878,0.002,2859.9,2859.2,14.04125369]
[1769401191064,0.002,2860.0,2859.2,14.04125369]
[1769401191065,0.002,2860.0,2859.5,6.0130842]
[1769401191260,7.42333296,2860.2,2859.5,6.0130842]
[1769401191482,0.0008,2861.4,2859.8,6.0130842]
[1769401191660,7.42333296,2860.8,2859.8,6.0130842]
[1769401191878,7.42333296,2860.8,2859.8,14.91541405]
[1769401192078,7.42333296,2860.7,2859.8,14.91541405]
[1769401192400,7.42333296,2860.6,2859.8,6.88724456]
[1769401192587,7.42333296,2860.7,2859.7,8.02816949]
[1769401192768,7.42333296,2860.6,2859.7,8.90238231]
[1769401192970,7.42333296,2860.6,2859.7,8.90236765]
[1769401194892,7.42333296,2860.6,2859.7,8.02816949]
[1769401195098,7.42533296,2860.5,2859.7,8.02816949]
[1769401195802,7.42533296,2860.5,2859.7,8.90237948]
[1769401196616,0.0779402,2861.4,2859.7,8.90237948]
[1769401196617,0.0008,2862.3,2861.4,8.10530969]
[1769401196772,1.34143984,2862.8,2861.7,6.0130842]
[1769401196973,1.34143984,2862.8,2861.4,8.10530969]
[1769401196974,1.34143984,2862.8,2861.4,8.02816949]
[1769401198004,0.83364885,2863.1,2861.4,8.02816949]
[1769401198285,3.63580143,2862.9,2861.4,8.02816949]
[1769401198632,4.50906377,2862.9,2861.3,8.02816949]
[1769401198811,3.69241381,2862.5,2861.0,8.76016949]
[1769401199107,3.69241381,2862.5,2861.2,0.87375302]
[1769401199312,4.42441381,2862.5,2861.2,0.87374001]
[1769401199513,4.42441381,2862.5,2861.3,0.87372732]
[1769401199707,3.74836936,2862.3,2861.2,0.87373796]
[1769401199910,3.74836936,2862.3,2861.1,8.02816949]
[1769401200097,3.74836936,2862.3,2861.3,8.90189739]
[1769401200614,0.44244138,2862.4,2861.4,8.90186759]
[1769401200812,3.80366509,2862.9,2861.4,8.90186759]
[1769401201014,4.53566509,2862.9,2861.4,8.90186759]
[1769401201607,0.732,2862.8,2861.4,8.90186759]
[1769401201786,0.0008,2863.2,2861.6,8.02816949]
[1769401202302,0.002,2862.7,2861.6,8.02816949]
[1769401202612,0.002,2862.7,2861.8,8.02816949]
[1769401203189,0.002,2862.9,2861.9,8.02816949]
[1769401204918,0.002,2862.9,2861.9,8.90168584]
[1769401205317,4.07457388,2862.9,2861.6,9.17810806]
[1769401205516,0.40745739,2862.8,2861.8,0.87356928]
[1769401205718,0.40745739,2862.8,2861.0,8.30450028]
[1769401205719,4.53162112,2862.8,2861.0,8.30450028]
[1769401205922,4.85616373,2862.7,2861.4,9.17817866]
[1769401206226,4.12416373,2862.7,2861.3,3.49488943]
[1769401206418,4.85616373,2862.7,2861.5,8.33944698]
[1769401206720,4.70142157,2862.6,2861.5,8.30450028]
[1769401207911,0.52636211,2862.6,2861.5,9.17816104]
[1769401208107,0.732,2862.7,2861.5,8.30450028]
[1769401208316,4.95737069,2862.7,2861.5,8.30450028]
[1769401208507,4.22537069,2862.6,2861.5,8.30450028]
[1769401208708,5.09870779,2862.6,2861.2,8.30450028]
[1769401208915,5.09870779,2862.6,2861.3,0.03494914]
[1769401209111,4.27521092,2862.4,2861.3,0.03494914]
[1769401209311,4.27521092,2862.4,2861.2,8.30450028]
[1769401209695,4.27521092,2862.4,2861.2,9.17825622]
[1769401209896,4.27521092,2862.4,2861.2,8.30450028]
[1769401210797,4.27521092,2862.4,2861.4,8.30450028]
[1769401210798,0.732,2862.3,2861.4,8.30450028]
[1769401211033,1.21782817,2862.3,2861.4,8.30450028]
[1769401211235,0.48582817,2862.3,2861.4,8.30450028]
[1769401211422,0.732,2862.3,2861.4,8.30450028]
[1769401211617,0.54962488,2862.3,2861.4,8.30450028]
[1769401211996,4.37319825,2862.7,2861.4,8.30450028]
[1769401212203,0.732,2862.6,2861.4,8.30450028]
[1769401212428,0.732,2862.5,2861.4,8.30450028]
[1769401212616,5.20082032,2862.5,2861.4,8.30450028]
[1769401212817,4.46882032,2862.3,2861.0,9.17829973]
[1769401213022,4.46882032,2862.3,2861.2,8.30450028]
[1769401214550,4.46882032,2862.3,2861.4,0.001]
[1769401215960,4.46882032,2862.3,2861.4,8.30550028]
[1769401217055,0.52008203,2862.4,2861.4,8.30550028]
[1769401217257,0.732,2862.3,2861.4,8.30550028]
[1769401218373,4.69876583,2862.5,2861.4,8.30550028]
[1769401218530,0.732,2862.4,2861.4,8.30550028]
[1769401218860,5.51902856,2862.4,2861.4,8.30550028]
[1769401219056,5.51902856,2862.4,2861.2,8.79474221]
[1769401219057,4.78702856,2862.4,2861.2,8.79474221]
[1769401219245,0.732,2862.3,2861.6,8.79474221]
[1769401220961,5.65936371,2862.6,2861.6,8.79474221]
[1769401221259,0.732,2862.5,2861.6,8.79474221]
[1769401221961,5.64683454,2862.5,2861.6,8.79474221]
[1769401222170,0.65201697,2862.4,2861.6,8.79474221]
[1769401222534,0.732,2862.3,2861.6,8.79474221]
[1769401223567,0.65201697,2862.4,2861.6,8.79474221]
[1769401223871,0.732,2862.2,2861.6,8.79474221]
[1769401224634,0.65201697,2862.4,2861.6,8.79474221]
[1769401224939,0.732,2862.1,2861.6,8.79474221]
[1769401225870,0.732,2862.0,2861.6,8.79474221]
[1769401226760,0.732,2861.9,2861.6,8.79474221]
[1769401227664,0.55868515,2862.3,2861.6,8.79474221]
[1769401228063,0.732,2862.2,2861.6,8.79474221]
[1769401228260,0.55868515,2862.3,2861.4,5.9999115]
[1769401228261,0.002,2862.3,2861.7,5.9999115]
[1769401228569,0.002,2862.3,2861.8,8.79474221]
[1769401228788,0.002,2862.5,2862.1,8.79474221]
[1769401229080,0.002,2862.9,2862.1,8.79474221]
[1769401229242,0.732,2862.8,2862.1,8.79474221]
[1769401230479,0.002,2862.9,2862.1,8.79474221]
[1769401230662,0.732,2862.8,2862.1,8.79474221]
[1769401232143,0.002,2862.9,2862.1,8.79474221]
[1769401232349,0.732,2862.8,2862.1,8.79474221]
[1769401232748,0.002,2862.9,2862.4,8.79474221]
[1769401232955,0.732,2862.8,2862.4,8.79474221]
[1769401233388,0.732,2862.7,2862.4,8.79474221]
[1769401233753,0.002,2862.9,2862.4,8.79474221]
[1769401233754,0.732,2862.6,2862.4,8.79474221]
[1769401233956,0.732,2862.5,2862.4,8.7464148]
[1769401234173,0.732,2862.8,2862.5,8.7464148]
[1769401234356,0.0008,2863.2,2862.5,8.7464148]
[1769401234562,0.732,2863.1,2862.7,8.7464148]
[1769401235077,0.732,2863.0,2862.7,8.7464148]
[1769401235448,0.0008,2863.2,2862.4,8.7464148]
[1769401235649,0.732,2863.1,2862.4,8.7464148]
[1769401236180,0.002,2863.7,2862.5,8.7464148]
[1769401236360,0.002,2863.7,2862.4,1.29090688]
[1769401236361,0.734,2863.7,2862.6,8.7464148]
[1769401237170,0.002,2863.7,2862.6,8.7464148]
[1769401237482,0.732,2863.6,2862.6,8.7464148]
[1769401237862,0.734,2863.7,2862.6,8.7464148]
[1769401238181,0.002,2863.7,2862.9,8.7464148]
[1769401238371,0.0028,2864.1,2862.8,9.14857759]
[1769401238573,0.002,2863.5,2862.8,8.7464148]
[1769401238778,0.00114282,2864.1,2862.9,8.7464148]
[1769401238981,0.002,2863.7,2862.8,8.7464148]
[1769401239189,0.00114282,2864.1,2862.8,8.7464148]
[1769401240060,0.00114282,2864.1,2863.0,8.7464148]
[1769401240898,0.18234753,2865.6,2863.1,8.7464148]
[1769401241208,6.54505762,2865.2,2863.4,8.7464148]
[1769401241404,6.54505762,2865.2,2863.3,8.39236993]
[1769401241405,0.146,2864.8,2863.6,8.7464148]
[1769401241579,5.67251646,2865.2,2863.6,8.7464148]
[1769401242111,0.732,2864.8,2863.8,8.7464148]
[1769401242799,0.734,2864.9,2863.8,8.7464148]
[1769401243727,5.77299002,2866.1,2863.8,8.7464148]
[1769401243919,1.18808358,2866.0,2864.0,8.7464148]
[1769401244120,6.64531633,2865.9,2864.2,8.7464148]
[1769401244416,0.731,2865.8,2864.2,8.7464148]
[1769401244618,5.77299002,2865.7,2864.2,8.7464148]
[1769401244819,6.53248996,2865.6,2864.4,8.7464148]
[1769401245193,0.650399,2865.6,2864.4,8.7464148]
[1769401245384,0.731,2865.5,2864.4,8.7464148]
[1769401245613,0.731,2865.4,2864.0,9.61931664]
[1769401246621,6.70896982,2865.8,2864.0,9.61931664]
[1769401246918,0.731,2865.7,2864.0,9.61931664]
[1769401247117,6.59888577,2865.7,2864.0,9.61931664]
[1769401247318,0.74712618,2865.6,2864.2,8.7464148]
[1769401247892,0.731,2865.7,2864.2,8.7464148]
[1769401248416,0.731,2865.7,2864.3,0.8728136]
[1769401248619,7.5327818,2865.7,2864.4,8.7464148]
[1769401249033,5.92939455,2865.6,2864.4,8.7464148]
[1769401249210,0.75327818,2865.5,2864.4,8.7464148]
[1769401249411,6.68267273,2865.5,2864.4,8.7464148]
[1769401249732,5.92939455,2865.5,2864.4,8.7464148]
[1769401250408,0.87247853,2865.4,2864.4,8.7464148]
[1769401250801,5.98945432,2865.3,2864.1,8.7464148]
[1769401251059,6.06659452,2865.1,2863.5,9.61946468]
[1769401251344,6.06659452,2865.1,2863.7,8.7464148]
[1769401251345,6.59611377,2865.0,2863.7,8.7464148]
[1769401252552,6.89167206,2864.9,2863.7,8.7464148]
[1769401252752,6.96881226,2864.9,2863.1,9.61958884]
[1769401252924,6.96881226,2864.9,2863.3,8.7464148]
[1769401253131,7.15491678,2864.8,2863.4,8.7464148]
[1769401253549,0.0771402,2864.7,2863.4,8.7464148]
[1769401253754,6.07724114,2864.6,2863.4,8.7464148]
[1769401253931,1.33872411,2864.5,2863.4,8.7464148]
[1769401254632,2.2114841,2864.5,2863.4,8.7464148]
[1769401256363,8.34556282,2864.5,2863.4,8.7464148]
[1769401256564,8.34556282,2864.5,2863.5,8.7464148]
[1769401256565,1.33872411,2864.5,2863.5,8.7464148]
[1769401257074,0.2211451,2864.4,2863.5,8.7464148]
[1769401261090,1.60375882,2864.5,2863.5,8.7464148]
[1769401261873,6.296903,2864.4,2863.3,8.7464148]
[1769401263380,7.19576882,2864.3,2863.0,9.50968304]
[1769401263584,7.19576882,2864.3,2863.7,0.001]
[1769401265212,7.27290902,2864.3,2863.7,0.001]
[1769401265414,6.39934747,2864.1,2863.7,0.001]
[1769401265709,6.47648767,2864.1,2862.8,0.001]
[1769401266502,6.42424041,2863.8,2862.8,0.001]
[1769401267318,6.44888574,2863.6,2862.8,0.001]
[1769401267503,1.46318822,2863.5,2862.8,0.001]
[1769401267701,7.91207396,2863.5,2862.8,0.001]
[1769401267882,7.91207396,2863.5,2862.3,0.0016]
[1769401268312,0.0771402,2863.4,2862.3,0.0016]
[1769401268498,6.47223442,2863.3,2862.3,0.0016]
[1769401268707,7.14354925,2863.2,2862.3,0.0016]
[1769401269511,7.36950523,2863.1,2862.3,0.0016]
[1769401275314,7.44664543,2863.1,2862.5,0.001]
[1769401275520,7.44664543,2863.1,2861.7,9.50968304]
[1769401275729,6.73167011,2862.9,2861.7,9.50968304]
[1769401276041,6.65452991,2862.7,2861.7,9.50968304]
[1769401276197,0.731,2862.6,2861.7,9.50968304]
[1769401277033,7.42910295,2862.6,2861.7,9.50968304]
[1769401277709,7.42910295,2862.6,2860.8,9.42200931]
[1769401277921,1.61627274,2862.5,2861.0,9.42200931]
[1769401278539,8.33587646,2862.5,2861.0,9.42200931]
[1769401279530,6.74082217,2862.4,2861.0,9.42200931]
[1769401279898,7.63525755,2862.3,2861.0,9.42200931]
[1769401280234,1.11289514,2862.2,2861.0,9.42200931]
[1769401281915,1.98635353,2862.2,2861.0,9.42200931]
[1769401282340,0.731,2862.6,2861.0,10.29581878]
[1769401282643,0.87306786,2863.5,2861.6,9.42200931]
[1769401282841,0.002,2863.6,2861.8,9.42200931]
[1769401283025,0.002,2863.6,2862.0,9.42200931]
[1769401283026,0.732,2863.4,2862.0,9.42200931]
[1769401283205,0.732,2863.4,2862.2,9.42200931]
[1769401284020,1.60509206,2863.4,2862.2,9.42200931]
[1769401284541,0.732,2863.4,2862.2,10.29545875]
[1769401284842,0.732,2863.4,2862.2,10.29545921]
[1769401286746,0.732,2863.4,2862.4,9.42200931]
[1769401286942,0.732,2863.4,2862.3,9.42200931]
[1769401288044,0.002,2863.2,2862.3,9.42200931]
[1769401288340,0.002,2863.2,2862.5,9.42200931]
[1769401288551,0.002,2863.6,2862.5,9.42200931]
[1769401290353,0.002,2863.6,2862.7,9.42200931]
[1769401293736,0.002,2863.6,2862.9,9.96014454]
[1769401298053,0.0028,2863.8,2863.0,9.96014454]
[1769401298248,0.0028,2863.8,2863.2,9.96014454]
[1769401298561,0.732,2864.0,2863.1,0.03492717]
[1769401298562,0.732,2864.0,2863.4,9.96014454]
[1769401299262,10.24,2864.5,2863.2,9.96014454]
[1769401299468,0.002,2864.6,2863.4,9.96014454]
[1769401300251,0.00100193,2864.6,2863.7,9.96014454]
[1769401300460,0.0008,2864.7,2863.5,9.96014454]
[1769401300779,0.0008,2864.7,2863.7,9.96014454]
[1769401301771,0.0779402,2864.7,2863.7,9.96014454]
[1769401302477,0.95064008,2864.7,2863.7,9.96014454]
[1769401303055,0.0008,2864.7,2863.7,9.96014454]
[1769401303973,0.0008,2864.7,2863.7,10.83313648]
[1769401304182,0.0008,2864.7,2863.9,9.96014454]
[1769401304776,0.0008,2864.7,2863.9,10.83307304]
[1769401304989,0.002,2865.4,2864.0,9.96014454]
[1769401305200,0.003,2865.5,2864.4,9.96014454]
[1769401306576,0.003,2865.5,2864.6,9.96014454]
[1769401307467,0.731,2866.4,2864.8,9.96014454]
[1769401307668,0.731,2866.4,2864.5,0.87275266]
[1769401307669,0.731,2866.4,2865.0,9.96014454]
[1769401308475,0.731,2866.4,2865.2,9.96014454]
[1769401308866,1.60318278,2866.4,2865.2,9.96014454]
[1769401309081,10.49110979,2866.4,2864.9,9.96014454]
[1769401309380,0.731,2866.4,2865.0,10.83273539]
[1769401310978,0.003,2865.8,2865.0,10.83273539]
[1769401311182,0.18220846,2868.2,2865.8,10.19371484]
[1769401311382,0.731,2867.8,2866.0,9.96014454]
[1769401311685,8.87367121,2867.5,2866.0,9.96014454]
[1769401312299,0.0199743,2867.5,2866.0,9.96014454]
[1769401312482,0.731,2867.4,2865.8,9.96014454]
[1769401312781,0.55617093,2867.4,2866.1,9.96014454]
[1769401313495,0.731,2867.3,2866.1,9.96014454]
[1769401314151,0.01697816,2867.5,2866.1,9.96014454]
[1769401314350,0.731,2867.4,2866.1,9.96014454]
[1769401314561,9.64003503,2867.4,2866.1,9.96014454]
[1769401314796,0.731,2867.3,2866.2,0.87223501]
[1769401315094,0.9640035,2867.2,2866.2,0.87223501]
[1769401315309,1.6950035,2867.2,2866.2,10.83237955]
[1769401315891,0.731,2867.1,2866.2,10.83237955]
[1769401316094,0.731,2867.0,2866.2,9.96014454]
[1769401316898,0.731,2867.0,2866.0,0.87229588]
[1769401317299,0.731,2867.0,2866.0,0.90718771]
[1769401317710,0.731,2867.0,2866.0,0.87229588]
[1769401318389,0.731,2867.0,2865.9,9.96014454]
[1769401318770,0.9727996,2866.9,2865.9,9.96014454]
[1769401318967,0.9727996,2866.9,2865.9,10.8324579]
[1769401319709,0.731,2866.8,2866.0,0.03489183]
[1769401319908,1.7037996,2866.9,2866.0,9.99503637]
[1769401320209,0.731,2866.9,2866.0,9.96014454]
[1769401320379,0.731,2866.9,2866.1,0.03489061]
[1769401320702,0.01697816,2867.5,2866.1,9.99503515]
[1769401320904,0.731,2867.4,2866.4,9.96014454]
[1769401321201,0.731,2867.3,2866.4,9.96014454]
[1769401321600,9.04778045,2867.5,2866.2,0.87222775]
[1769401321896,10.68348524,2867.4,2866.2,10.83237229]
[1769401322266,10.68348524,2867.4,2866.2,0.87222775]
[1769401322463,0.731,2867.3,2866.2,10.83237229]
[1769401322898,9.95248524,2867.4,2866.2,10.83237229]
[1769401323099,0.90497805,2867.4,2866.2,10.83237229]
[1769401323274,0.01697816,2867.5,2866.2,10.83237229]
[1769401323475,0.01697816,2867.5,2866.4,9.73756187]
[1769401323702,0.74797816,2867.5,2866.6,9.73756187]
[1769401323900,0.74797816,2867.5,2866.8,9.73756187]
[1769401324266,0.01697816,2867.5,2866.8,9.73756187]
[1769401325002,0.01697816,2867.5,2866.8,10.60961015]
[1769401326286,0.01697816,2867.5,2866.8,9.73756187]
[1769401326481,0.01697816,2867.5,2866.9,0.03488088]
[1769401326687,0.01697816,2867.5,2866.9,0.90690292]
[1769401327387,0.01697816,2867.5,2866.8,10.60958489]
[1769401327782,0.01697816,2867.5,2866.8,10.60960782]
[1769401328091,0.01697816,2867.5,2866.8,9.73756187]
[1769401329506,9.19040296,2867.5,2866.3,4.65219926]
[1769401329712,10.10763442,2867.4,2866.3,3.78]
[1769401330305,10.10763442,2867.4,2866.2,0.001]
[1769401330480,9.18839412,2867.2,2866.2,0.001]
[1769401332808,10.13747111,2867.2,2866.2,0.001]
[1769401333107,9.23249265,2867.0,2865.6,10.60995723]
[1769401334493,0.731,2866.9,2865.6,10.60995723]
[1769401334891,0.01697816,2867.5,2865.7,9.75262179]
[1769401335193,1.65890134,2867.4,2865.7,9.73756187]
[1769401335398,0.731,2867.3,2865.9,9.73756187]
[1769401335706,0.01697816,2867.5,2866.3,9.73756187]
[1769401335927,0.731,2867.2,2866.3,9.73756187]
[1769401336919,0.002,2867.3,2866.3,9.73756187]
[1769401337120,0.002,2867.3,2866.5,10.04627718]
[1769401337281,0.002,2867.3,2866.7,10.04627718]
[1769401337718,0.002,2867.3,2866.7,10.9183297]
[1769401340895,0.002,2867.3,2866.7,10.04627718]
[1769401341203,0.002,2867.3,2866.4,13.53495717]
[1769401341388,0.002,2867.3,2866.7,10.91835747]
[1769401342696,0.01897816,2867.5,2866.9,10.04627718]
[1769401344113,0.01897816,2867.5,2867.0,10.9182688]
[1769401348254,0.01897816,2867.5,2867.0,10.04627718]
[1769401350344,0.002,2867.3,2867.0,10.04627718]
[1769401353210,0.002,2867.3,2866.9,0.001]
[1769401353650,0.002,2867.3,2866.0,0.87228507]
[1769401353651,9.51418164,2867.3,2866.0,0.87228507]
[1769401353957,9.51418164,2867.3,2866.2,9.70446221]
[1769401354111,0.73,2867.2,2866.2,9.70446221]
[1769401354634,0.73,2867.1,2866.2,9.70446221]
[1769401354950,0.73,2867.1,2865.9,9.70446221]
[1769401355163,9.53431604,2867.2,2865.9,9.70446221]
[1769401355308,0.9536316,2867.1,2866.0,0.03489183]
[1769401355513,0.002,2867.3,2866.1,9.70446221]
[1769401355742,0.73,2867.2,2866.1,9.70446221]
[1769401356516,10.27516011,2867.2,2866.1,9.70446221]
[1769401358851,10.27516011,2867.2,2866.1,10.57672735]
[1769401361329,10.27516011,2867.2,2866.1,9.70446221]
[1769401361540,10.27516011,2867.2,2866.1,10.57672279]
[1769401361849,1.02771601,2867.1,2866.1,9.70446221]
[1769401362221,1.02771601,2867.1,2866.3,0.001]
[1769401362421,0.002,2867.0,2866.3,0.001]
[1769401363532,0.73,2866.9,2866.3,0.001]
[1769401364556,0.002,2867.0,2866.3,0.001]
[1769401364759,1.7958027,2866.9,2866.3,0.001]
[1769401365823,0.731,2866.9,2866.3,0.001]